Cogmind - Beta 14 @@@ ROGUE MODE // 2024.08.30 @ 23:57:14 Player: Buttons Result: Destroyed by G-47 Trooper with Particle Gun Performance ------------- Evolutions (0) 0 Regions Visited (1) 200 Robots Destroyed (11) 55 Value Destroyed (287) 287 Prototype IDs (0) 0 Alien Tech Used (0) 0 Bonus (0) 0 TOTAL SCORE: 542 Bonus ------- None Cogmind --------- Core Integrity 0/250 Matter 272/300 Energy 227/250 System Corruption 0% Temperature Cool (9) Movement Walking (120) Location -10/Materials Parts ------- > --- POWER (1) -------- Ion Engine > --- PROPULSION (2) --- Aluminum Leg Aluminum Leg > --- UTILITY (2) ------ Seismic Detector > --- WEAPON (2) ------- Light Assault Rifle > --- INVENTORY (5) ---- Light Ion Engine Aluminum Leg Improved Terrain Scanner Peak State ------------ > --- POWER ------------ Light Ion Engine > --- PROPULSION ------- Aluminum Leg Aluminum Leg > --- UTILITY ---------- Heat Sink Improved Terrain Scanner > --- WEAPON ----------- EM Pulse Gun Light Assault Rifle > --- INVENTORY -------- Wheel Wheel Wheel EM Pulse Gun [Rating: 9] Favorites ----------- Power Light Ion Engine Engine Light Ion Engine Propulsion Aluminum Leg Leg Aluminum Leg Utility Heat Sink Device Heat Sink Weapon Light Assault Rifle Energy Gun EM Pulse Gun Ballistic Gun Light Assault Rifle Build | -11 -10 ------- Run | Yrd Mat Slots Evolved . | . . Power . | . . Propulsion . | . . Utility . | . . Weapon . | . . Parts Attached 13 | 7 6 Power 2 | 1 1 Engine 2 | 1 1 Core . | . . Reactor . | . . Propulsion 4 | 2 2 Treads . | . . Leg 4 | 2 2 Wheel . | . . Hover . | . . Flight . | . . Utility 3 | 2 1 Device 3 | 2 1 Storage . | . . Processor . | . . Hackware . | . . Protection . | . . Artifact . | . . Weapon 4 | 2 2 Energy Gun 3 | 1 2 Energy Cannon . | . . Ballistic Gun 1 | 1 . Ballistic Cannon . | . . Launcher . | . . Special Weapon . | . . Impact Weapon . | . . Slashing Weapon . | . . Piercing Weapon . | . . Special Melee Weapon . | . . Unidentified Prototypes . | . . Parts Lost 4 | . 4 Power . | . . Propulsion 2 | . 2 Utility 1 | . 1 Weapon 1 | . 1 Highest Loss Streak 4 | . 4 To Critical Strikes . | . . Average Slot Usage (%) 97 | . 97 Engine 14 | . 14 Leg 26 | . 26 Device 28 | . 28 Energy Gun 13 | . 13 Ballistic Gun 14 | . 14 Peak Build Rating 9 | 9 7 Average Rating 6 | 4 6 On Entrance 4 | . 9 Naked Turns . | . . Heaviest Build 10 | 8 10 Greatest Support 20 | 20 20 Greatest Overweight (x) . | . . Average Overweight (x) . | . . Largest Inventory Capacity 5 | 5 5 Average Capacity 5 | 5 5 Most Carried 5 | 5 5 Average Carried 4 | 2 4 Final Capacity 5 | 5 5 Final Carried 5 | 5 3 Class Distribution -------------------- 100% | Mutant Dominant Class ---------------- Mutant | -10/Materials Resources | -11 -10 ----------- Run | Yrd Mat Matter Collected 349 | 288 61 Remotely . | . . Salvage Created 426 | 105 321 Parts 24 | 10 14 Haulers Intercepted 1 | . 1 Recyclers Shooed . | . . Parts Field Recycled . | . . Retrieved Matter . | . . Parts Self-Destructed . | . . Prevented . | . . Kills | -11 -10 ------- Run | Yrd Mat Combat Hostiles Destroyed 7 | 1 6 Guns 7 | 1 6 Classes Destroyed 3 | 2 1 Tunneler 3 | 3 . Hauler 1 | . 1 Grunt 7 | 1 6 Best Kill Streak 4 | 4 2 Combat Bots Only 2 | 1 2 Max Kills in Single Turn 1 | 1 1 Gunslinging . | . . Exploded . | . . Melee . | . . Uniques/NPCs Destroyed . | . . Combat | -11 -10 -------- Run | Yrd Mat Hostile Shots Fired 66 | 7 59 Missed 12 | 1 11 Damage Taken 711 | 63 648 Core 260 | 20 240 Absorbed by Shields . | . . Core Remaining (%) 92 | 92 . Volleys Fired 67 | 18 49 Largest 2 | 2 2 Hottest 60 | 60 60 Shots Fired 122 | 36 86 Gun 122 | 36 86 Cannon . | . . Launcher . | . . Special . | . . Kinetic 67 | 18 49 Thermal 16 | . 16 Explosive . | . . Electromagnetic 39 | 18 21 Robot Hit Streak 17 | 9 17 Robot Miss Streak 3 | 3 3 Penetration Max . | . . Secondary Targets 1 | . 1 Max Gunslinging Chain 1 | . 1 Shots Hit Robots 86 | 20 66 Core Hits 27 | 7 20 Critical Kills 1 | 1 . Critical Parts Destroyed . | . . Critical Strikes 2 | 1 1 Destroy 1 | 1 . Corrupt 1 | . 1 Melee Attacks . | . . Impact . | . . Slashing . | . . Piercing . | . . Sneak Attacks . | . . Combat Hostiles . | . . Follow-up Attacks . | . . Damage Inflicted 964 | 262 702 Guns 880 | 222 658 Cannons . | . . Explosions 84 | 40 44 Melee . | . . Ramming . | . . Kinetic 339 | 55 284 Thermal 252 | 40 212 Explosive . | . . Electromagnetic 373 | 167 206 Impact . | . . Slashing . | . . Piercing . | . . Highest Corruption . | . . Average Corruption . | . . Corruption Purged . | . . Corruption Blocked . | . . Overload Shots . | . . Overflow Damage . | . . Projectiles . | . . Explosions . | . . Melee . | . . Knockbacks . | . . Impact . | . . Kinetic . | . . Secondary . | . . Self-Inflicted Damage . | . . Shots . | . . Rammed . | . . Targets Rammed . | . . Kicked . | . . Crushed . | . . Highest Temperature 76 | 76 18 Average Temperature 17 | 23 8 Received Heat Transfer 411 | 36 375 Siege Activations . | . . Robots Corrupted . | . . Combat Hostiles . | . . Parts Fried . | . . Impact Corruptions . | . . Robots Melted . | . . Combat Hostiles . | . . Parts Melted 2 | . 2 Heat Transferred 425 | . 425 Parts Sabotaged . | . . Parts Stolen . | . . Parts Stripped . | . . Power Chain Reactions 2 | 1 1 Alert | -11 -10 ------- Run | Yrd Mat Peak Influence 234 | 35 234 Initial 22 | . 22 Average 90 | 11 123 Maximum Alert Level 1 | . 1 Low Security (%) 88 | 100 83 Level 1 11 | . 16 Level 2 . | . . Level 3 . | . . Level 4 . | . . Level 5 . | . . High Security . | . . Max Security . | . . Squads Dispatched 2 | . 2 Investigation 1 | . 1 Extermination . | . . Reinforcement 1 | . 1 Assault . | . . Garrison . | . . Intercept . | . . Searches Triggered . | . . Construction Impeded . | . . Haulers Reinforced . | . . Active Scanning Responses . | . . Cargo Convoy Interrupts . | . . Stealth | -11 -10 --------- Run | Yrd Mat Distress Signals 1 | . 1 Communications Jammed . | . . Distress Signals . | . . Times Spotted 11 | 1 10 Peak Tracking Total 5 | 1 5 Tactical Retreats . | . . Traps | -11 -10 ------- Run | Yrd Mat Traps Triggered 1 | . 1 Indirectly . | . . Trap Hack Attempts . | . . Triggered . | . . Disarmed . | . . Reprogrammed . | . . Reused . | . . Traps Extracted . | . . Installed . | . . Triggered . | . . Machines | -11 -10 ---------- Run | Yrd Mat Machines Disabled . | . . Max in Single Turn . | . . Machines Repaired . | . . Machines Dismantled . | . . Machines Sabotaged . | . . Overloaded Fab Kills . | . . Hacking | -11 -10 --------- Run | Yrd Mat Machines Accessed 1 | . 1 Terminals 1 | . 1 Fabricators . | . . Repair Stations . | . . Recycling Units . | . . Scanalyzers . | . . Garrison Access . | . . Total Hacks 4 | . 4 Successful 1 | . 1 Failed 3 | . 3 Catastrophic . | . . Database Lockouts . | . . Manual 4 | . 4 Terminals 4 | . 4 Fabricators . | . . Repair Stations . | . . Recycling Units . | . . Scanalyzers . | . . Garrison Access . | . . Terminal Hacks 1 | . 1 Hauler Manifests 1 | . 1 Fabricator Hacks . | . . Repair Station Hacks . | . . Recycling Unit Hacks . | . . Scanalyzer . | . . Garrison Access Hacks . | . . Unauthorized Hacks . | . . Terminals . | . . Fabricators . | . . Repair Stations . | . . Recycling Units . | . . Scanalyzers . | . . Garrison Access . | . . Data Cores Recovered . | . . Used . | . . Hacking Detections 1 | . 1 Full Trace Events . | . . Feedback Events . | . . Feedback Blocked . | . . Robot Schematics Acquired . | . . Robots Built . | . . Authchips . | . . Time . | . . Total Robot Build Rating . | . . Part Schematics Acquired . | . . Parts Built . | . . Authchips . | . . Time . | . . Total Part Build Rating . | . . Parts Repaired . | . . Time . | . . Parts Recycled . | . . Recycled Matter . | . . Retrieved Matter . | . . Retrieved Components . | . . Parts Scanalyzed . | . . Part Schematics Acquired . | . . Parts Damaged . | . . Bothacking | -11 -10 ------------ Run | Yrd Mat Used RIF Installer . | . . Robots Hacked . | . . Non-combat . | . . Combat . | . . Robot Hacks Applied . | . . Relay Couplers Released . | . . Fabnet Peak Effective % . | . . Robots Rewired . | . . Allies Hacked . | . . Hacks Repelled . | . . Allies | -11 -10 -------- Run | Yrd Mat Total Allies . | . . Largest Group . | . . Highest-Rated Group . | . . Highest-Rated Ally . | . . Total Orders . | . . Ally Attacks . | . . Total Damage . | . . Kills . | . . Allies Corrupted . | . . Allies Melted . | . . Intel | -11 -10 ------- Run | Yrd Mat Robot Analysis Total . | . . Derelict Logs Recovered . | . . Drone Launches . | . . Drone Recoveries . | . . Exploration | -11 -10 ------------- Run | Yrd Mat Turns Passed 595 | 176 419 Spaces Moved 301 | 97 204 Core 15 | 15 . Treads . | . . Legs 286 | 82 204 Wheels . | . . Hover . | . . Flight . | . . Fastest Speed 50 | 50 120 Average Speed 116 | 109 120 Slowest Speed 120 | 120 120 Overloaded Moves . | . . Propulsion Burnouts . | . . Robots Hopped . | . . Cave-ins Triggered . | . . Exploration Rate (%) 26 | 7 46 Regions Visited 1 Branch Regions . Pre-discovered Areas . | . . Known Exits Taken . | . . Unknown Exits Taken 1 | 1 . Scrap Searched . | . . Spaces Dug . | . . Terrain Destroyed 12 | 6 6 Melee . | . . Projectile . | . . AOE 12 | 6 6 Terrain Rammed . | . . Walls Destroyed . | . . Machines Disabled . | . . Actions | -11 -10 --------- Run | Yrd Mat Total 436 | 131 305 Wait 41 | 5 36 Move 300 | 96 204 Hop . | . . Pick Up 9 | 5 4 Fast Attach 8 | 7 1 Attach 2 | . 2 Detach . | . . Swap 3 | . 3 Drop 6 | . 6 Fire 67 | 18 49 Melee . | . . Ram . | . . Kick . | . . Crush . | . . Escape Stasis . | . . Rewire . | . . Trap . | . . Miscellaneous . | . . Route ------- -11/Scrapyard -10/Materials (discovered 2 exits: [*Mat x2]) History --------- Turn | Location | Event 2 | -11/Scrapyard | Met Revision 17 84 | -11/Scrapyard | Discovered new exit (range 8) 177 | -11/Scrapyard | Entered Materials 304 | -10/Materials | Build established: Mutant 356 | -10/Materials | Discovered new exit (range 3) 445 | -10/Materials | Discovered new exit (range 10) 538 | -10/Materials | Core integrity fell below 50% 579 | -10/Materials | Core integrity fell below 20% 596 | -10/Materials | Destroyed by G-47 Trooper with Particle Gun Last Messages --------------- 00504_ Acquired Sml. Laser. 00508_ Acquired 33 matter. 00511_ Dropped Aluminum Leg. 00511_ Acquired Aluminum Leg. 00530_ R-06 Scavenger collects EM Pulse Gun. 00549_ G-47 Trooper heat spikes uncontrollably. 00549_ W-16 Scout sends out distress signal. 00549_ G-47 Trooper overheating. 00551_ G-47 Trooper heat spikes uncontrollably. 00552_ G-47 Trooper overheating. 00555_ G-47 Trooper destroyed. 00566_ Aluminum Leg destroyed. 00569_ Sml. Laser melted. 00569_ G-34 Mercenary destroyed. 00569_ Switching to secondary target: G-47 Trooper. 00569_ Sml. Laser destroyed. 00588_ Aluminum Leg destroyed. 00590_ Heat Sink destroyed. [Achievement: First Step to Greatness] Map ----- +----------------------------------------------------+ | | | | | | | | | | | | | | | | | | | | | | | | | | | | | | | | | | | ?????????????????????????????????????????????????? | | ?????????????????????????????????????????????????? | | ??????????????????????########???????????????????? | | ??????????????????????# #???????????????????? | | ??????????????????????# """ #???????????????????? | | ??????????????????????# """ #???????????????????? | | ??????????????????????# """ #???????????????????? | | #####?????????????????# g #???????????????????? | | #?????????????????# @ g%#???????????????????? | | ########################m#######?????????????? | | = % #?????????????? | | ########## < #?????????????? | | ########?????# #?????????????? | | ## #####?# #### ######## #?????????????? | | #??# #??????? #?????????????? | | #??# #???????? #?????????????? | | #??# #????????? ????????????? | | ## ###+#######??# #?????????? ???????????? | | ### ##????????????# #??????????? ??????????? | | # #?????????????# #???????????? ????????? | | " # #?????????????# #?????????????##?????????? | | " + #?????????????# #????????????????????????? | | " # #?????????????# #????????????????????????? | | # #?????????????# #????????????????????????? | | # #?????????????# #????????????????????????? | | # #?????????????# ????????????????????????? | | # #?????????????? ?????????????????????????? | | # #??????????????????????????????????????????? | | ### #??????????????????????????????????????????? | | ??# #??????????????????????????????????????????? | | ??# #??????????????????????????????????????????? | | ??# #??????????????????????????????????????????? | | ??# #??????????????????????????????????????????? | +----------------------------------------------------+ Best States ------------- Heat Dissipation 35 Energy Generation 10 Energy Capacity 250 Matter Stores 300 Matter Capacity 300 Sight Range 16 Terrain Scan Range 16 Terrain Scan Density 10 Evasion (%) 55 Item Schematics ----------------- None Robot Schematics ------------------ None Fabricated ------------ Nothing Alien Tech Used ----------------- None Achievements -------------- Crack Shot First Step to Greatness Loot Pinata Shopping List Uninvited Guest Challenges ------------ None Game ------ Seed NuclearExplosiveMantle Manual? 0 Play Time 00:16:02 Cumulative 0.2 hours Start 2024.08.30 @ 23:36:30 End 2024.08.30 @ 23:57:14 Sessions 1 Manual Loads 0 Difficulty Rogue Special Mode None Game No. 1 Rogue 1 Adventurer 0 Explorer 0 Win Type - Total 0 Types 0/0/0/0/0/0/0/0/0 Lore% 0 Gallery% 0 Achievement% 1 Wizard Run 0 Options --------- Layout 1 ASCII 0 Keyboard 0 Movement Vi Keybinds 0 Fullscreen 1 Font 18/SmallcapsGlow Map View 50x40 Zoom Use 0% Tactical HUD 1 Map Filters NONE Filters NONE Steam 0 RUN: 13c2d367-f3a6-4c77-834b-13847fa18607